bitfinex-derivatives/quotes_BTCF0:USTF0_20250309
["timestamp","ask_amount","ask_price","bid_price","bid_amount"]
[1741547838918,0.1209392,82701.0,82700.0,0.001]
[1741547839121,0.120948,82695.0,82694.0,0.1814222]
[1741547839419,0.11668,82701.0,82690.0,0.0604769]
[1741547839626,0.1209641,82684.0,82683.0,0.0444]
[1741547839922,0.12097,82680.0,82675.0,0.12115744]
[1741547840136,0.12097,82680.0,82675.0,0.00018134]
[1741547840318,0.1209758,82676.0,82675.0,0.00018134]
[1741547840507,0.1199758,82676.0,82675.0,0.00018134]
[1741547840708,0.4807758,82676.0,82675.0,0.00018134]
[1741547841314,0.4807758,82676.0,82675.0,4e-08]
[1741547841518,0.4807758,82676.0,82653.0,0.21653096]
[1741547841519,0.121008,82654.0,82653.0,0.21653096]
[1741547841719,0.237648,82654.0,82653.0,0.33754046]
[1741547841909,0.237648,82654.0,82653.0,0.21653096]
[1741547842320,0.235648,82654.0,82653.0,0.21653096]
[1741547842514,0.279748,82654.0,82653.0,0.21653096]
[1741547843023,0.279748,82654.0,82653.0,0.1210095]
[1741547843024,0.11664,82654.0,82653.0,0.1210095]
[1741547843223,0.1210168,82650.0,82649.0,0.1210136]
[1741547844625,0.003,82654.0,82653.0,0.1210095]
[1741547844822,0.003,82654.0,82653.0,0.4818095]
[1741547845015,0.1209945,82664.0,82661.0,0.1209978]
[1741547845323,0.1209927,82665.0,82661.0,0.1209978]
[1741547845519,0.0428,82680.0,82661.0,0.1209978]
[1741547845721,0.11664,82676.0,82661.0,0.1209978]
[1741547845921,0.0604894,82674.0,82661.0,0.2082978]
[1741547846129,0.12117776,82662.0,82661.0,0.0873]
[1741547846523,0.12117776,82662.0,82661.0,0.2082978]
[1741547846824,0.12117776,82662.0,82661.0,0.0873]
[1741547847027,0.36098146,82662.0,82645.0,0.00018146]
[1741547847225,0.8426197,82646.0,82639.0,0.0424]
[1741547847427,0.1210285,82640.0,82639.0,0.0424]
[1741547847821,0.1200285,82640.0,82639.0,0.0424]
[1741547848525,0.0605121,82643.0,82631.0,0.04508146]
[1741547848526,0.1210402,82632.0,82631.0,0.04508146]
[1741547848725,0.83824,82632.0,82602.0,0.2602]
[1741547849029,0.83824,82632.0,82596.0,0.3608]
[1741547849030,0.0605323,82616.0,82596.0,0.3608]
[1741547849225,0.1210681,82613.0,82602.0,0.0441]
[1741547849426,0.3608,82613.0,82602.0,0.0441]
[1741547849631,0.1190827,82603.0,82602.0,0.0441]
[1741547849825,0.2356827,82603.0,82602.0,0.0441]
[1741547850221,0.2356827,82603.0,82602.0,0.1651842]
[1741547850518,0.2356827,82603.0,82602.0,0.0441]
[1741547850721,0.2356827,82603.0,82602.0,0.0421]
[1741547851121,0.2356827,82603.0,82602.0,0.1631842]
[1741547851319,0.2376827,82603.0,82602.0,0.1631842]
[1741547851732,0.2376827,82603.0,82602.0,0.0421]
[1741547851932,0.2416827,82603.0,82602.0,0.0421]
[1741547852534,0.2406827,82603.0,82602.0,0.0421]
[1741547852727,0.1210842,82602.0,82601.0,0.0426]
[1741547852939,0.1210857,82601.0,82600.0,0.1]
[1741547853527,0.2064857,82601.0,82600.0,0.1]
[1741547854833,0.2134857,82601.0,82600.0,0.101]
[1741547856026,0.2134857,82601.0,82589.0,0.0414]
[1741547856027,0.1211018,82590.0,82589.0,0.0414]
[1741547856231,0.1211121,82583.0,82582.0,0.0432]
[1741547857327,0.0605551,82585.0,82582.0,0.1037562]
[1741547857532,0.0605551,82585.0,82584.0,0.1211106]
[1741547857733,0.0595551,82585.0,82584.0,0.1211106]
[1741547858528,0.0595551,82585.0,82582.0,0.0432]
[1741547858835,0.1211121,82583.0,82582.0,0.1643119]
[1741547859033,0.1211121,82583.0,82582.0,0.0432]
[1741547859239,0.1211121,82583.0,82582.0,0.1643135]
[1741547859629,0.1211121,82583.0,82582.0,0.0432]
[1741547859833,0.1211121,82583.0,82582.0,0.1643135]
[1741547860337,0.002,82585.0,82584.0,0.1211106]
[1741547860529,0.1231091,82585.0,82584.0,0.1211106]
[1741547860729,0.1211121,82583.0,82582.0,0.1037562]
[1741547861434,0.1221121,82583.0,82582.0,0.1037562]
[1741547861733,0.001,82583.0,82582.0,0.1037562]
[1741547861930,0.1221121,82583.0,82582.0,0.0432]
[1741547862135,0.1221121,82583.0,82576.0,0.3608]
[1741547862136,0.1211209,82577.0,82576.0,0.3608]
[1741547862333,0.1211223,82576.0,82575.0,0.0437]
[1741547862534,0.2068223,82576.0,82575.0,0.0437]
[1741547863442,0.1645223,82576.0,82575.0,0.0437]
[1741547864443,0.1665223,82576.0,82575.0,0.0437]
[1741547864742,0.2073223,82576.0,82575.0,0.0437]
[1741547864931,0.2053223,82576.0,82575.0,0.0437]
[1741547865127,0.2083223,82576.0,82575.0,0.0437]
[1741547865331,0.1675223,82576.0,82575.0,0.0437]
[1741547865533,0.1645223,82576.0,82575.0,0.0437]
[1741547865745,0.0605658,82570.0,82566.0,0.00181637]
[1741547866037,0.15674,82569.0,82568.0,0.1211341]
[1741547866537,0.11664,82569.0,82568.0,0.1211341]
[1741547866745,0.2377726,82569.0,82568.0,0.1613341]
[1741547867044,0.11664,82569.0,82568.0,0.1613341]
[1741547867337,0.11664,82575.0,82574.0,0.1211253]
[1741547867535,0.2377638,82575.0,82574.0,0.1211253]
[1741547867736,0.11664,82575.0,82574.0,0.1211253]
[1741547867942,0.11664,82575.0,82574.0,0.4709253]
[1741547868343,0.2377638,82575.0,82574.0,0.4709253]
[1741547868541,0.11664,82575.0,82574.0,0.4709253]
[1741547868843,0.2377638,82575.0,82574.0,0.3608]
[1741547870041,0.2377638,82575.0,82568.0,0.0402]
[1741547870042,0.1211326,82569.0,82568.0,0.0402]
[1741547870942,0.1755372,82569.0,82568.0,0.0402]
[1741547871144,0.1211443,82561.0,82560.0,0.00012139]
[1741547871448,0.5985443,82561.0,82560.0,0.00012139]
[1741547872038,0.1211575,82552.0,82551.0,0.0426]
[1741547872243,0.2377575,82552.0,82551.0,0.0426]
[1741547873938,0.1166,82552.0,82551.0,0.163759]
[1741547874245,0.1166,82560.0,82559.0,0.1817209]
[1741547874450,0.1166,82561.0,82560.0,0.1211458]
[1741547874641,0.2377443,82561.0,82560.0,0.1211458]
[1741547874847,0.1166,82561.0,82557.0,0.0838]
[1741547875159,0.1166,82561.0,82560.0,0.1211458]
[1741547875445,0.2377443,82561.0,82560.0,0.1211458]
[1741547875645,0.1211458,82560.0,82559.0,0.0412]
[1741547875853,0.2052458,82560.0,82559.0,0.0412]
[1741547876743,0.181748,82549.0,82548.0,0.1211628]
[1741547877042,0.1166,82552.0,82548.0,0.1211628]
[1741547877241,0.1211678,82547.0,82546.0,0.1211635]
[1741547878047,0.1166,82552.0,82541.0,0.01200267]
[1741547878255,0.1211766,82540.0,82538.0,0.0426]
[1741547878446,0.1211766,82540.0,82539.0,0.1211755]
[1741547878640,0.060587,82541.0,82538.0,0.0426]
[1741547878641,0.1211766,82539.0,82538.0,0.0426]
[1741547878839,0.060587,82541.0,82537.0,0.84239609]
[1741547878840,0.1211781,82538.0,82537.0,0.84239609]
[1741547879039,0.0275542,82541.0,82537.0,0.96253559]
[1741547879248,0.33440119,82550.0,82541.0,0.0605866]
[1741547879446,0.1817568,82545.0,82544.0,0.1211659]
[1741547879851,0.121177,82541.0,82540.0,0.0605868]
[1741547880347,0.0605875,82541.0,82537.0,0.72117659]
[1741547880651,0.0605853,82543.0,82535.0,0.35937659]
[1741547880843,0.121181,82536.0,82535.0,0.48055909]
[1741547881244,0.1166,82544.0,82543.0,0.1211707]
[1741547881448,0.2377693,82544.0,82543.0,0.1211707]
[1741547882147,0.1166,82544.0,82543.0,0.4819707]
[1741547882349,0.1166,82544.0,82540.0,0.21711164]
[1741547882350,0.24703457,82544.0,82540.0,0.21711164]
[1741547882542,0.1211737,82541.0,82540.0,0.21711164]
[1741547883045,0.07742697,82543.0,82540.0,0.21711164]
[1741547883242,0.1211737,82541.0,82540.0,0.21711164]
[1741547884046,0.24703457,82544.0,82543.0,0.1211707]
[1741547884047,0.12586527,82544.0,82543.0,0.1211707]
[1741547884245,0.1166,82544.0,82543.0,0.1211707]
[1741547884441,0.1166,82544.0,82543.0,0.13309103]
[1741547884843,0.21358168,82555.0,82554.0,0.1211546]
[1741547885045,0.00018168,82555.0,82554.0,0.1211546]
[1741547885550,0.00018168,82555.0,82544.0,0.0425]
[1741547885551,0.1211649,82547.0,82544.0,0.0425]
[1741547885748,0.1211678,82545.0,82544.0,0.2848348]
[1741547885944,0.11674168,82555.0,82551.0,0.1211572]
[1741547886151,0.00018168,82555.0,82554.0,0.1211546]
[1741547886347,0.3608,82577.0,82559.0,0.0605735]
[1741547886348,0.37295739,82577.0,82559.0,0.0605735]
[1741547886544,0.21344,82586.0,82569.0,0.3608]
[1741547886753,0.33,82586.0,82585.0,0.1211091]
[1741547887053,0.33,82586.0,82570.0,0.0802]
[1741547887054,0.34229818,82586.0,82570.0,0.0802]
[1741547887253,0.1211279,82574.0,82573.0,0.1211246]
[1741547887450,0.3512432,82586.0,82570.0,0.0802]
[1741547887451,0.1211278,82573.0,82570.0,0.0802]
[1741547887651,0.1211297,82571.0,82570.0,0.0402]
[1741547887856,0.3608,82571.0,82565.0,0.00018168]
[1741547888049,0.121137,82566.0,82565.0,0.00018168]
[1741547888250,0.237697,82566.0,82565.0,0.12132018]
[1741547888556,0.237697,82566.0,82565.0,0.00018168]
[1741547889260,0.451097,82566.0,82565.0,0.00018168]
[1741547890248,0.451097,82566.0,82565.0,0.12132018]
[1741547890558,0.451097,82566.0,82565.0,0.00018168]
[1741547891553,0.334537,82566.0,82565.0,0.00018168]
[1741547891759,0.811857,82566.0,82565.0,0.00018168]
[1741547892850,0.854257,82566.0,82565.0,0.00018168]
[1741547894061,0.493457,82566.0,82565.0,0.04278168]
[1741547894461,0.1211605,82550.0,82549.0,0.21711164]
[1741547894755,0.0605697,82565.0,82549.0,0.33827354]
[1741547894756,0.0605794,82552.0,82549.0,0.33827354]
[1741547895061,0.1211605,82550.0,82549.0,0.21711164]
[1741547896258,0.1211605,82550.0,82547.0,0.0417]
[1741547896259,0.1211707,82543.0,82542.0,0.21711164]
[1741547896461,0.5984507,82543.0,82542.0,0.21711164]
[1741547896961,0.1211766,82539.0,82538.0,0.28956581]
[1741547897156,0.4819766,82539.0,82538.0,0.28956581]
[1741547897857,0.5619766,82539.0,82538.0,0.28956581]
[1741547899261,0.5619766,82539.0,82533.0,0.35937659]
[1741547899262,0.5908,82539.0,82533.0,0.35937659]
[1741547899464,0.5908,82539.0,82529.0,0.43225191]
[1741547899465,0.1211898,82530.0,82529.0,0.43225191]
[1741547899664,0.11648,82530.0,82521.0,0.1212021]
[1741547899959,0.08,82529.0,82522.0,0.0394]
[1741547900177,0.11648,82528.0,82523.0,0.0415]
[1741547900462,0.11644,82527.0,82526.0,0.1211957]
[1741547900659,0.1211972,82525.0,82524.0,0.1644986]
[1741547901168,0.1211972,82525.0,82524.0,0.0433]
[1741547901663,0.0414,82526.0,82505.0,0.0606131]
[1741547901664,0.4022,82526.0,82505.0,0.0606131]
[1741547901859,0.4022,82526.0,82514.0,0.0433]
[1741547901860,0.1212119,82515.0,82514.0,0.0433]
[1741547902160,0.2376919,82515.0,82514.0,0.0433]
[1741547902571,0.1212324,82501.0,82500.0,0.1]
[1741547902867,0.1212324,82501.0,82500.0,0.2212339]
[1741547903558,0.1212324,82501.0,82500.0,0.1]
[1741547904063,0.0606153,82503.0,82502.0,0.121231]
[1741547904266,0.1212324,82501.0,82500.0,0.1]
[1741547904561,0.11644,82505.0,82504.0,0.121228]
[1741547904863,0.0001818,82509.0,82503.0,0.121228]
[1741547905164,0.1212095,82517.0,82503.0,0.121228]
[1741547905165,0.2179,82523.0,82522.0,0.1212016]
[1741547905364,0.32988,82525.0,82524.0,0.1211986]
[1741547905565,0.33543856,82540.0,82524.0,0.3608]
[1741547905760,0.1211795,82537.0,82536.0,0.0605899]
[1741547905970,0.1211959,82527.0,82526.0,0.1211942]
[1741547906169,0.11644,82531.0,82526.0,0.1211942]
[1741547906359,0.1770342,82531.0,82528.0,0.12119]
[1741547906668,0.1211898,82530.0,82529.0,0.0408]
[1741547907366,0.11644,82531.0,82529.0,0.0408]
[1741547907757,0.2376284,82531.0,82530.0,0.1211898]
[1741547907958,0.1211898,82530.0,82529.0,0.1619898]
[1741547908359,0.11644,82531.0,82530.0,0.1211898]
[1741547908559,0.2376284,82531.0,82530.0,0.0408]
[1741547908766,0.11644,82531.0,82530.0,0.1619898]
[1741547909367,0.2376284,82531.0,82530.0,0.1619898]
[1741547909554,0.11644,82531.0,82530.0,0.1619898]
[1741547909760,0.0001818,82535.0,82530.0,0.0408]
[1741547909960,0.0001818,82535.0,82534.0,0.121184]
[1741547911463,0.1213643,82535.0,82532.0,0.0605928]
[1741547911672,0.1211972,82525.0,82524.0,0.3608]
[1741547911869,0.181788,82531.0,82530.0,0.121189]
[1741547912058,0.37237336,82534.0,82533.0,0.1211854]
[1741547912364,0.0001818,82535.0,82534.0,0.121184]
[1741547912564,0.1213643,82535.0,82534.0,0.121184]
[1741547913167,0.1213643,82535.0,82531.0,0.0605935]
[1741547913168,0.0001818,82535.0,82531.0,0.0605935]
[1741547913472,0.1211957,82527.0,82526.0,0.1211948]
[1741547913672,0.0001818,82535.0,82524.0,0.3608]
[1741547913867,0.1211942,82527.0,82526.0,0.0394]
[1741547914072,0.19059286,82534.0,82531.0,0.0605935]
[1741547914073,0.31177706,82534.0,82531.0,0.0605935]
[1741547914376,0.19059286,82534.0,82533.0,0.1211854]
[1741547914675,0.121184,82534.0,82533.0,0.1211854]
[1741547915368,0.1211854,82533.0,82532.0,0.0394]
[1741547915576,0.0431,82534.0,82517.0,0.039]
[1741547915765,0.0431,82534.0,82514.0,0.3608]
[1741547915766,0.4819972,82525.0,82514.0,0.001]
[1741547915960,0.121206,82519.0,82506.0,0.0606124]
[1741547916273,0.15756,82524.0,82503.0,0.3608]
[1741547916474,0.121206,82519.0,82518.0,0.1213887]
[1741547916669,0.121206,82519.0,82518.0,0.0001818]
[1741547916877,0.2181593,82524.0,82523.0,0.1212001]
[1741547917076,0.1212016,82522.0,82519.0,0.100003]
[1741547917275,0.121206,82519.0,82518.0,0.0001818]
[1741547917577,0.121206,82519.0,82518.0,0.1213893]
[1741547917873,0.121206,82519.0,82518.0,0.0001818]
[1741547918773,0.163306,82519.0,82518.0,0.0001818]
[1741547918976,0.1212219,82510.0,82501.0,0.0606155]
[1741547919170,0.1212219,82510.0,82509.0,0.1212179]
[1741547919372,0.11636,82513.0,82499.0,0.0401]
[1741547919569,0.1212324,82501.0,82500.0,0.2212339]
[1741547919766,0.1212324,82501.0,82500.0,0.1]
[1741547920171,0.1212324,82501.0,82500.0,0.2212339]
[1741547920368,0.237588,82504.0,82503.0,0.1212295]
[1741547921378,0.237588,82504.0,82501.0,0.0606155]
[1741547921574,0.121231,82502.0,82501.0,0.0606155]
[1741547922173,0.11636,82504.0,82503.0,0.1212295]
[1741547923283,0.237588,82504.0,82503.0,0.1212295]
[1741547924477,0.11636,82504.0,82503.0,0.1212295]
[1741547925270,0.1212254,82506.0,82503.0,0.1212295]
[1741547925471,0.09336483,82509.0,82508.0,0.1212221]
[1741547925784,0.20968483,82509.0,82508.0,0.1212221]
[1741547926082,0.33090553,82509.0,82508.0,0.1212221]
[1741547926280,0.20968483,82509.0,82508.0,0.1212221]
[1741547926683,0.2377225,82509.0,82508.0,0.1212221]
[1741547927880,0.2377225,82509.0,82507.0,0.161923]
[1741547927881,0.1212221,82508.0,82507.0,0.161923]
[1741547928183,0.1212221,82508.0,82507.0,0.0407]
[1741547928386,0.1212221,82508.0,82507.0,0.1619236]
[1741547929777,0.1212221,82508.0,82507.0,0.0407]
[1741547929976,0.1212324,82501.0,82497.0,0.0606187]
[1741547930207,0.1212324,82501.0,82498.0,0.0413]
[1741547930386,0.2375124,82502.0,82499.0,0.1212339]
[1741547930587,0.2375124,82502.0,82501.0,0.1212324]
[1741547930789,0.2375124,82502.0,82501.0,0.1629324]
[1741547931388,0.2804124,82502.0,82501.0,0.1629324]
[1741547932478,0.2804124,82502.0,82501.0,0.0417]
[1741547932792,0.2804124,82502.0,82501.0,0.1629324]
[1741547932991,0.15918,82502.0,82501.0,0.1629324]
[1741547933285,0.11628,82502.0,82501.0,0.1629324]
[1741547933687,0.237511,82502.0,82501.0,0.1629324]
[1741547933881,0.237511,82502.0,82501.0,0.2067324]
[1741547934078,0.237511,82502.0,82501.0,0.0855]
[1741547935093,0.598311,82502.0,82501.0,0.0855]
[1741547935287,0.1212324,82501.0,82500.0,0.1]
[1741547935483,0.2049324,82501.0,82500.0,0.1]
[1741547937191,0.29811543,82501.0,82500.0,0.1]
[1741547940183,0.21395709,82501.0,82500.0,0.2212339]
[1741547940387,0.12522469,82501.0,82500.0,0.2365747]
[1741547942599,0.24645709,82501.0,82500.0,0.2365747]
[1741547942802,0.24645709,82501.0,82500.0,0.1153408]
[1741547943303,0.24645709,82501.0,82500.0,0.0725408]
[1741547943896,0.28845709,82501.0,82500.0,0.0725408]
[1741547944093,0.28845709,82501.0,82500.0,0.1937747]
[1741547944304,0.16722469,82501.0,82500.0,0.1937747]
[1741547944888,0.00902469,82501.0,82500.0,0.1937747]
[1741547945093,0.11616,82501.0,82500.0,0.1937747]
[1741547945293,0.11616,82501.0,82500.0,0.19735532]
[1741547945891,0.12036922,82501.0,82500.0,0.15943654]
[1741547946203,0.21849486,82501.0,82500.0,0.15943654]
[1741547946600,0.10233486,82501.0,82500.0,0.15943654]
[1741547946901,0.09812564,82501.0,82500.0,0.15943654]
[1741547947503,0.21935804,82501.0,82500.0,0.0415]
[1741547947701,0.30325804,82501.0,82500.0,0.0415]
[1741547948000,0.30325804,82501.0,82489.0,0.4224245]
[1741547948001,0.1212486,82490.0,82489.0,0.4820473]
[1741547948396,0.19059286,82500.0,82489.0,0.4820473]
[1741547948397,0.0839,82495.0,82491.0,0.0606233]
[1741547948591,0.12731053,82494.0,82493.0,0.1212427]
[1741547949000,0.1212486,82490.0,82489.0,0.3618]
[1741547949203,0.48811643,82490.0,82478.0,0.01190451]
[1741547949402,0.1212662,82478.0,82477.0,0.1619643]
[1741547949596,0.00606783,82478.0,82477.0,0.2832291]
[1741547949797,0.00606783,82478.0,82470.0,0.0606383]
[1741547950102,0.1212721,82476.0,82475.0,0.1212692]
[1741547950306,0.12733993,82476.0,82475.0,0.1212692]
[1741547950504,0.05145017,82476.0,82475.0,0.1644692]
[1741547951008,0.17271937,82476.0,82475.0,0.1644692]
[1741547951404,0.16843703,82476.0,82475.0,0.1644692]
[1741547951607,0.04716783,82476.0,82459.0,0.15682]
[1741547951909,0.1212803,82469.0,82465.0,0.0606425]
[1741547952209,0.1212803,82469.0,82468.0,0.1212795]
[1741547952407,0.1212839,82467.0,82466.0,0.1212832]
[1741547952608,0.0060695,82467.0,82466.0,0.1212832]
[1741547952907,0.01029138,82467.0,82466.0,0.1212832]
[1741547953107,0.01029138,82467.0,82466.0,0.1637832]
[1741547955108,0.13157378,82467.0,82466.0,0.1637839]
[1741547955296,0.13157378,82467.0,82466.0,0.12584814]
[1741547955504,0.00422188,82467.0,82466.0,0.12584814]
[1741547956403,0.12550428,82467.0,82466.0,0.12584814]
[1741547956606,0.00422188,82467.0,82466.0,0.12584814]
[1741547956812,0.12550428,82467.0,82466.0,0.12584814]
[1741547957109,0.16760428,82467.0,82466.0,0.00456424]
[1741547957605,0.27179992,82467.0,82466.0,0.00456424]
[1741547957803,0.27179992,82467.0,82466.0,0.1212839]
[1741547958205,0.15051752,82467.0,82466.0,0.1212839]
[1741547958416,0.27179992,82467.0,82466.0,0.1212839]
[1741547958603,0.1819377,82462.0,82461.0,0.1819297]
[1741547959010,0.06486688,82462.0,82461.0,0.1819297]
[1741547959300,0.00422188,82462.0,82461.0,0.1819297]
[1741547959815,0.00422188,82463.0,82462.0,0.1212898]
[1741547960311,0.0412,82466.0,82464.0,0.1212868]
[1741547960312,0.12550798,82465.0,82464.0,0.1212868]
[1741547961009,0.12550798,82465.0,82457.0,0.07289988]
[1741547961010,0.1212927,82460.0,82438.0,0.060662]
[1741547961212,0.1212971,82457.0,82450.0,0.1213069]
[1741547961415,0.1212971,82457.0,82448.0,0.1044551]
[1741547961713,0.12736757,82457.0,82456.0,0.35481318]
[1741547962215,0.1213104,82448.0,82447.0,0.3608]
[1741547962404,0.12738087,82448.0,82447.0,0.3608]
[1741547962606,0.12738087,82448.0,82447.0,0.4821118]
[1741547962815,0.21350275,82448.0,82447.0,0.4821118]
[1741547963219,0.20928154,82448.0,82447.0,0.3608]
[1741547963510,0.20928154,82448.0,82437.0,0.3608]
[1741547963511,0.1213224,82441.0,82440.0,0.121321]
[1741547963712,0.00607114,82441.0,82440.0,0.1213221]
[1741547963924,0.0104108,82441.0,82440.0,0.1213221]
[1741547964308,0.09497285,82441.0,82440.0,0.1649221]
[1741547964507,0.01027285,82441.0,82440.0,0.1649221]
[1741547965014,0.00593319,82441.0,82440.0,0.1649221]
[1741547965605,0.1639124,82447.0,82446.0,0.1213133]
[1741547965814,0.0426,82447.0,82437.0,0.3608]
[1741547966021,0.0426,82447.0,82442.0,0.1213177]
[1741547966022,0.1213198,82443.0,82442.0,0.1213177]
[1741547966417,0.0847,82443.0,82442.0,0.1213177]
[1741547966721,0.2060177,82443.0,82442.0,0.1649177]
[1741547967118,0.0847,82443.0,82441.0,0.04]
[1741547967330,0.1213192,82442.0,82441.0,0.1613207]
[1741547967529,0.0847,82443.0,82442.0,0.1213192]
[1741547967730,0.1213177,82443.0,82442.0,0.2871369]
[1741547968112,0.1213177,82443.0,82442.0,0.0445]
[1741547968428,0.1213162,82445.0,82444.0,0.1213154]
[1741547968611,0.0606573,82446.0,82442.0,0.0445]
[1741547968812,0.1213177,82443.0,82442.0,0.1658184]
[1741547969225,0.060659,82443.0,82430.0,0.4041]
[1741547969527,0.1213267,82439.0,82438.0,0.1658239]
[1741547969726,0.1213267,82439.0,82438.0,0.0445]
[1741547969926,0.2373267,82439.0,82438.0,0.0445]
[1741547970119,0.24154246,82439.0,82438.0,0.1658251]
[1741547970320,0.24153936,82439.0,82438.0,0.1658251]
[1741547970520,0.24153936,82439.0,82438.0,0.0445]
[1741547970923,0.12021576,82439.0,82438.0,0.1658251]
[1741547972325,0.24153936,82439.0,82438.0,0.1658251]
[1741547972524,0.12021576,82439.0,82438.0,0.1658251]
[1741547972724,0.12553936,82439.0,82438.0,0.1658251]
[1741547972931,0.24153936,82439.0,82438.0,0.1658251]
[1741547973123,0.12021576,82439.0,82434.0,0.1213302]
[1741547973330,0.1213339,82432.0,82431.0,0.2260018]
[1741547973523,0.1213339,82432.0,82431.0,0.1046673]
[1741547973925,0.12554966,82432.0,82431.0,0.1046673]
[1741547974232,0.13162148,82432.0,82431.0,0.1046673]
[1741547974624,0.01028758,82432.0,82431.0,0.1451673]
[1741547975024,0.01028754,82432.0,82431.0,0.1451673]
[1741547976432,0.17721858,82441.0,82440.0,0.1213221]
[1741547976728,0.17721858,82441.0,82440.0,0.4821221]
[1741547977132,0.1213207,82441.0,82440.0,0.4821221]
[1741547977330,0.1213207,82441.0,82440.0,0.5276758]
[1741547978034,0.12173243,82443.0,82442.0,0.1213192]
[1741547978341,0.12173243,82443.0,82442.0,0.44417314]
[1741547978523,0.00018191,82449.0,82442.0,0.59417314]
[1741547978724,0.00018191,82449.0,82448.0,0.4821104]
[1741547978932,0.00018191,82449.0,82448.0,0.5980704]
[1741547979523,0.00018191,82449.0,82448.0,0.6806704]
[1741547982745,0.13861774,82457.0,82456.0,0.1212986]
[1741547982746,0.1212982,82457.0,82456.0,0.1212986]
[1741547982939,0.1212982,82457.0,82456.0,0.3608]
[1741547983139,0.1212982,82457.0,82456.0,0.4820986]
[1741547983534,0.1212982,82457.0,82456.0,0.5641986]
[1741547983938,0.1644982,82457.0,82456.0,0.5641986]
[1741547984438,0.00929732,82460.0,82457.0,0.1819421]
[1741547984741,0.1212957,82458.0,82457.0,0.1819421]
[1741547985036,0.1212957,82458.0,82457.0,0.2236421]
[1741547985343,0.1212957,82458.0,82457.0,0.1629971]
[1741547986230,0.1614957,82458.0,82457.0,0.1629971]
[1741547986435,0.0432,82459.0,82458.0,0.1212956]
[1741547986639,0.35863854,82464.0,82458.0,0.1653956]
[1741547986837,0.52262934,82464.0,82463.0,0.1212883]
[1741547987145,0.1212898,82462.0,82458.0,0.0441]
[1741547987446,0.1212942,82459.0,82458.0,0.0441]
[1741547988035,0.1212942,82459.0,82458.0,0.1653956]
[1741547988338,0.1212942,82459.0,82458.0,0.5261956]
[1741547988535,0.1435463,82461.0,82458.0,0.5261956]
[1741547988835,0.1435463,82461.0,82460.0,0.1212927]
[1741547990041,0.0829,82461.0,82460.0,0.1212927]
[1741547990636,0.25779504,82464.0,82458.0,0.2270427]
[1741547990843,0.24858944,82464.0,82463.0,0.4820883]
[1741547991552,0.24858944,82464.0,82463.0,0.49403169]
[1741547991748,0.24858944,82464.0,82463.0,0.53743169]
[1741547991943,0.56907133,82464.0,82463.0,0.53743169]
[1741547994839,0.69035813,82464.0,82463.0,0.53743169]
[1741547995045,0.1212868,82464.0,82463.0,0.53743169]
[1741547995853,0.1212868,82464.0,82463.0,0.5254883]
[1741547996049,0.00018191,82465.0,82463.0,0.5254883]
[1741547996254,0.00018191,82465.0,82464.0,0.1212868]
[1741547996751,0.00018191,82465.0,82464.0,0.1646868]
[1741547996954,0.00018191,82465.0,82464.0,0.5254868]
[1741548001368,0.20806731,82465.0,82464.0,0.5254868]
[1741548001570,0.04318191,82465.0,82464.0,0.5254868]
[1741548002371,0.16376731,82465.0,82464.0,0.5254868]
[1741548002566,0.20736731,82465.0,82464.0,0.5254868]
[1741548002764,0.1212868,82464.0,82463.0,0.00108]
[1741548002968,0.1213001,82455.0,82454.0,0.4821014]
[1741548003860,0.1213001,82455.0,82454.0,0.5244014]
[1741548004456,0.1213001,82455.0,82454.0,0.3608]
[1741548004766,0.1213001,82455.0,82454.0,0.4821015]
[1741548005269,0.1213001,82455.0,82448.0,0.00018191]
[1741548005270,0.36981916,82455.0,82448.0,0.00018191]
[1741548005464,0.1213089,82449.0,82448.0,0.00018191]
[1741548005669,0.1213089,82449.0,82448.0,0.12149231]
[1741548005967,0.0431,82450.0,82449.0,0.1213089]
[1741548006270,0.0431,82450.0,82449.0,0.5244089]
[1741548006570,0.0431,82450.0,82449.0,0.5663089]
[1741548006867,0.0402,82454.0,82449.0,0.5663089]
[1741548006868,0.0402,82454.0,82453.0,0.121303]
[1741548007075,0.24851906,82455.0,82453.0,0.121303]
[1741548007076,0.24851906,82455.0,82454.0,0.1213015]
[1741548007372,0.24851906,82455.0,82454.0,0.6828415]
[1741548009771,0.4983155,82467.0,82466.0,0.1212839]
[1741548009772,0.2846755,82467.0,82466.0,0.1212839]
[1741548009965,0.2840355,82467.0,82466.0,0.5977239]
[1741548010665,0.2840355,82467.0,82466.0,0.6795239]
[1741548011384,0.2840355,82467.0,82466.0,0.69153522]
[1741548011668,0.32048189,82468.0,82467.0,0.1212824]
[1741548011860,0.32048189,82468.0,82467.0,0.2030824]
[1741548014059,0.00018191,82475.0,82467.0,0.9824]
[1741548014270,0.10704386,82489.0,82480.0,0.1212633]
[1741548014271,0.32486878,82481.0,82480.0,0.1212633]
[1741548014571,0.32486878,82481.0,82480.0,0.5976233]
[1741548015375,0.32486878,82481.0,82480.0,0.6821233]
[1741548015874,0.55555178,82488.0,82487.0,0.121253]
[1741548016072,0.39170008,82488.0,82487.0,0.482053]
[1741548016862,0.51295158,82488.0,82487.0,0.566653]
[1741548017065,0.51295158,82488.0,82487.0,0.45756714]
[1741548017269,0.59515158,82488.0,82487.0,0.57882014]
[1741548018165,0.1212618,82481.0,82471.0,0.0606377]
[1741548018367,0.1212618,82481.0,82480.0,0.4820622]
[1741548018568,0.1212618,82481.0,82480.0,0.3608]
[1741548018765,0.1212736,82473.0,82472.0,0.00018191]
[1741548018972,0.4820736,82473.0,82472.0,0.00018191]
[1741548019176,0.1212736,82473.0,82472.0,0.00018191]
[1741548019476,0.4820736,82473.0,82472.0,0.00018191]
[1741548019776,0.5631736,82473.0,82472.0,0.00018191]
[1741548019972,0.5631736,82473.0,82472.0,6.26e-05]
[1741548020370,0.1212883,82463.0,82462.0,0.00181873]
[1741548020571,0.1212883,82463.0,82462.0,0.12310853]
[1741548021571,0.1212883,82463.0,82462.0,0.00181873]
[1741548022072,0.1212883,82463.0,82462.0,0.12310853]
[1741548023072,0.1212883,82463.0,82462.0,0.00181873]
[1741548023674,0.08174,82465.0,82464.0,0.1212868]
[1741548023882,0.2023854,82465.0,82464.0,0.1212868]
[1741548024077,0.0811,82465.0,82463.0,0.0409]
[1741548024278,0.1212898,82462.0,82461.0,0.3608]
[1741548024583,0.0606448,82463.0,82462.0,0.1212868]
[1741548025077,0.1212912,82463.0,82462.0,0.5427299]
[1741548025281,0.0606421,82466.0,82462.0,0.5427299]
[1741548025585,0.19728381,82488.0,82487.0,0.121253]
[1741548025781,0.1212589,82483.0,82482.0,0.3608]
[1741548026773,0.11544,82483.0,82474.0,0.00018191]
[1741548026979,0.1212839,82466.0,82452.0,0.3608]